[Event "Snabbschacks-KM 2025"]
[Site "Linköping, Sweden"]
[Date "2025.05.20"]
[Round "9.1"]
[White "Andersson, Mats 1960"]
[Black "Olsson, Simon"]
[Result "0-1"]
[TimeControl "15 min + 5 sek"]
[WhiteTitle "FM"]
[WhiteElo "2225"]
[BlackElo "2048"]

1. c4 {[%clk 00:15:05]} {[%emt 00:00:02]} e6 {[%clk 00:15:10]} {[%emt
00:00:04]} 2. g3 {[%clk 00:15:03]} {[%emt 00:00:06]} d5 {[%clk 00:15:13]}
{[%emt 00:00:01]} 3. Nf3 {[%clk 00:14:58]} {[%emt 00:00:11]} Nf6 {[%clk
00:14:54]} {[%emt 00:00:24]} 4. b3 {[%clk 00:14:51]} {[%emt 00:00:12]} g6
{[%clk 00:14:12]} {[%emt 00:00:48]} 5. Bb2 {[%clk 00:14:49]} {[%emt 00:00:07]}
Bg7 {[%clk 00:14:16]} {[%emt 00:00:01]} 6. Bg2 {[%clk 00:14:49]} {[%emt
00:00:05]} O-O {[%clk 00:14:18]} {[%emt 00:00:03]} 7. O-O {[%clk 00:14:51]}
{[%emt 00:00:02]} c5 {[%clk 00:14:02]} {[%emt 00:00:22]} 8. cxd5 {[%clk
00:13:58]} {[%emt 00:00:59]} Nxd5 {[%clk 00:14:05]} {[%emt 00:00:02]} 9. Bxg7
{[%clk 00:14:00]} Kxg7 {[%clk 00:14:09]} 10. Qc2 {[%clk 00:14:00]} {[%emt
00:00:05]} Qf6 {[%clk 00:12:13]} {[%emt 00:02:02]} 11. Na3 {[%clk 00:13:13]}
{[%emt 00:00:51]} Na6 {[%clk 00:12:12]} {[%emt 00:00:07]} 12. Nc4 {[%clk
00:13:00]} {[%emt 00:00:17]} Nab4 {[%clk 00:11:20]} {[%emt 00:00:58]} 13. Qb1
{[%clk 00:12:24]} {[%emt 00:00:40]} Nc6 {[%clk 00:10:29]} {[%emt 00:00:57]} 14.
a3 {[%clk 00:12:09]} {[%emt 00:00:19]} b5 {[%clk 00:10:17]} {[%emt 00:00:17]}
15. Nb2 {[%clk 00:11:22]} {[%emt 00:00:51]} Bb7 {[%clk 00:10:14]} {[%emt
00:00:09]} 16. Nd3 {[%clk 00:11:10]} {[%emt 00:00:17]} Nd4 {[%clk 00:08:38]}
{[%emt 00:01:41]} 17. Nxc5 {[%clk 00:10:47]} {[%emt 00:00:28]} Nxe2+ {[%clk
00:08:42]} {[%emt 00:00:01]} 18. Kh1 {[%clk 00:10:51]} {[%emt 00:00:01]} Bc6
{[%clk 00:08:46]} {[%emt 00:00:02]} 19. Qd3 {[%clk 00:10:10]} {[%emt 00:00:44]}
Nef4 {[%clk 00:08:13]} {[%emt 00:00:39]} 20. gxf4 {[%clk 00:10:13]} {[%emt
00:00:01]} Nxf4 {[%clk 00:08:17]} {[%emt 00:00:02]} 21. Qe3 {[%clk 00:10:15]}
{[%emt 00:00:03]} Nxg2 {[%clk 00:06:44]} {[%emt 00:01:38]} 22. Kxg2 {[%clk
00:10:17]} {[%emt 00:00:02]} Qf5 {[%clk 00:06:48]} {[%emt 00:00:02]} 23. d4
{[%clk 00:09:14]} {[%emt 00:01:08]} Qg4+ {[%clk 00:06:49]} {[%emt 00:00:05]}
0-1

[Event "Snabbschacks-KM 2025"]
[Site "Linköping, Sweden"]
[Date "2025.05.20"]
[Round "9.2"]
[White "Qwarfort, Fredrik"]
[Black "Rogoz, Vladyslav"]
[Result "0-1"]
[TimeControl "15 min + 5 sek"]
[WhiteElo "1827"]
[BlackElo "2108"]

1. d4 {[%clk 00:15:10]} e6 {[%clk 00:15:08]} {[%emt 00:00:02]} 2. c4 {[%clk
00:15:13]} {[%emt 00:00:02]} b6 {[%clk 00:15:12]} 3. Nf3 {[%clk 00:15:12]}
{[%emt 00:00:06]} Bb7 {[%clk 00:15:16]} {[%emt 00:00:01]} 4. g3 {[%clk
00:15:15]} {[%emt 00:00:02]} f5 {[%clk 00:15:20]} {[%emt 00:00:01]} 5. Bg2
{[%clk 00:15:19]} Nf6 {[%clk 00:15:24]} {[%emt 00:00:02]} 6. O-O {[%clk
00:15:19]} {[%emt 00:00:05]} Be7 {[%clk 00:15:27]} {[%emt 00:00:01]} 7. Nc3
{[%clk 00:15:01]} {[%emt 00:00:23]} O-O {[%clk 00:15:30]} {[%emt 00:00:02]} 8.
Ne5 {[%clk 00:14:10]} {[%emt 00:00:56]} Bxg2 9. Kxg2 {[%clk 00:14:14]} d6
{[%clk 00:15:36]} {[%emt 00:00:02]} 10. Nd3 {[%clk 00:13:29]} {[%emt 00:00:49]}
Qd7 {[%clk 00:15:21]} {[%emt 00:00:21]} 11. b3 {[%clk 00:13:11]} {[%emt
00:00:23]} Nc6 {[%clk 00:15:23]} {[%emt 00:00:03]} 12. e3 {[%clk 00:13:07]}
{[%emt 00:00:08]} e5 {[%clk 00:15:22]} {[%emt 00:00:06]} 13. d5 {[%clk
00:11:58]} {[%emt 00:01:14]} Nd8 {[%clk 00:15:25]} {[%emt 00:00:02]} 14. Qe2
{[%clk 00:11:26]} {[%emt 00:00:38]} Nf7 {[%clk 00:15:27]} {[%emt 00:00:03]} 15.
e4 {[%clk 00:10:37]} {[%emt 00:00:54]} Rae8 {[%clk 00:15:27]} {[%emt 00:00:04]}
16. f3 {[%clk 00:10:27]} {[%emt 00:00:15]} a5 {[%clk 00:15:25]} {[%emt
00:00:06]} 17. Bd2 {[%clk 00:10:13]} {[%emt 00:00:19]} Kh8 {[%clk 00:15:06]}
{[%emt 00:00:24]} 18. Rae1 {[%clk 00:10:17]} {[%emt 00:00:01]} g5 {[%clk
00:15:04]} {[%emt 00:00:07]} 19. exf5 {[%clk 00:09:33]} {[%emt 00:00:49]} Qxf5
{[%clk 00:15:05]} {[%emt 00:00:04]} 20. Ne4 {[%clk 00:09:33]} {[%emt 00:00:06]}
Rg8 {[%clk 00:14:51]} {[%emt 00:00:19]} 21. Ndf2 {[%clk 00:08:50]} {[%emt
00:00:48]} Nh5 {[%clk 00:14:31]} {[%emt 00:00:25]} 22. g4 {[%clk 00:08:35]}
{[%emt 00:00:21]} Nf4+ {[%clk 00:14:34]} {[%emt 00:00:02]} 23. Bxf4 {[%clk
00:08:36]} {[%emt 00:00:04]} gxf4 {[%clk 00:14:37]} {[%emt 00:00:01]} 24. Rh1
{[%clk 00:08:12]} {[%emt 00:00:29]} Bh4 {[%clk 00:14:38]} {[%emt 00:00:04]} 25.
Reg1 {[%clk 00:07:32]} {[%emt 00:00:45]} Qd7 {[%clk 00:13:01]} {[%emt
00:01:42]} 26. a4 {[%clk 00:07:10]} {[%emt 00:00:28]} Rg6 {[%clk 00:12:32]}
{[%emt 00:00:33]} 27. Kf1 {[%clk 00:07:10]} {[%emt 00:00:06]} c6 {[%clk
00:12:32]} {[%emt 00:00:05]} 28. Qd3 {[%clk 00:06:10]} {[%emt 00:01:05]} Nd8
{[%clk 00:11:53]} {[%emt 00:00:45]} 29. Ke2 {[%clk 00:05:22]} {[%emt 00:00:52]}
cxd5 {[%clk 00:11:51]} {[%emt 00:00:07]} 30. cxd5 {[%clk 00:05:16]} {[%emt
00:00:11]} Nb7 {[%clk 00:11:49]} {[%emt 00:00:06]} 31. Rc1 {[%clk 00:05:12]}
{[%emt 00:00:09]} Nc5 {[%clk 00:11:51]} {[%emt 00:00:03]} 32. Nxc5 {[%clk
00:05:10]} {[%emt 00:00:08]} bxc5 {[%clk 00:11:54]} {[%emt 00:00:02]} 33. Ne4
{[%clk 00:04:55]} {[%emt 00:00:19]} Rb8 {[%clk 00:11:57]} {[%emt 00:00:02]} 34.
Qc3 {[%clk 00:04:19]} {[%emt 00:00:42]} Rb4 {[%clk 00:11:55]} {[%emt 00:00:07]}
35. Nd2 {[%clk 00:03:10]} {[%emt 00:01:13]} Rd4 {[%clk 00:11:27]} {[%emt
00:00:33]} 36. Qxa5 {[%clk 00:02:37]} {[%emt 00:00:39]} Rxg4 {[%clk 00:11:15]}
{[%emt 00:00:17]} 37. Rhg1 {[%clk 00:02:08]} {[%emt 00:00:35]} Rg7 {[%clk
00:10:51]} {[%emt 00:00:29]} 38. Ne4 {[%clk 00:01:57]} {[%emt 00:00:16]} h6
{[%clk 00:10:28]} {[%emt 00:00:28]} 39. Qa6 {[%clk 00:01:27]} {[%emt 00:00:35]}
Bg5 {[%clk 00:07:31]} {[%emt 00:03:02]} 40. Qxd6 {[%clk 00:01:15]} {[%emt
00:00:16]} Rxe4+ {[%clk 00:07:34]} {[%emt 00:00:01]} 0-1

[Event "Snabbschacks-KM 2025"]
[Site "Linköping, Sweden"]
[Date "2025.05.20"]
[Round "9.3"]
[White "Gustafsson, Nils"]
[Black "Nyberg, Peter"]
[Result "0-1"]
[TimeControl "15 min + 5 sek"]
[WhiteElo "1861"]
[BlackElo "1984"]

1. e4 {[%clk 00:15:06]} {[%emt 00:00:04]} c6 {[%clk 00:15:08]} {[%emt
00:00:03]} 2. d4 {[%clk 00:15:08]} {[%emt 00:00:03]} d5 {[%clk 00:15:11]}
{[%emt 00:00:03]} 3. exd5 {[%clk 00:15:09]} {[%emt 00:00:02]} cxd5 {[%clk
00:15:07]} {[%emt 00:00:09]} 4. c4 {[%clk 00:15:12]} {[%emt 00:00:02]} Nf6
{[%clk 00:15:08]} {[%emt 00:00:05]} 5. Nc3 {[%clk 00:15:11]} {[%emt 00:00:04]}
Nc6 {[%clk 00:15:06]} {[%emt 00:00:08]} 6. Nf3 {[%clk 00:15:12]} {[%emt
00:00:03]} a6 {[%clk 00:15:06]} {[%emt 00:00:06]} 7. c5 {[%clk 00:14:12]}
{[%emt 00:01:06]} Bg4 {[%clk 00:15:06]} {[%emt 00:00:05]} 8. Be2 {[%clk
00:13:59]} {[%emt 00:00:18]} g6 {[%clk 00:15:05]} {[%emt 00:00:06]} 9. h3
{[%clk 00:13:36]} {[%emt 00:00:27]} Bxf3 {[%clk 00:15:06]} {[%emt 00:00:05]} 10.
Bxf3 {[%clk 00:13:38]} {[%emt 00:00:01]} Bg7 {[%clk 00:14:59]} {[%emt
00:00:13]} 11. O-O {[%clk 00:13:33]} {[%emt 00:00:10]} e6 {[%clk 00:14:33]}
{[%emt 00:00:31]} 12. Re1 {[%clk 00:12:52]} {[%emt 00:00:46]} O-O {[%clk
00:14:26]} {[%emt 00:00:13]} 13. Be3 {[%clk 00:12:20]} {[%emt 00:00:36]} Nd7
{[%clk 00:12:48]} {[%emt 00:01:43]} 14. b4 {[%clk 00:11:30]} {[%emt 00:00:55]}
Nxb4 {[%clk 00:12:15]} {[%emt 00:00:38]} 15. Rb1 {[%clk 00:11:33]} {[%emt
00:00:02]} Nc6 {[%clk 00:11:43]} {[%emt 00:00:37]} 16. Rxb7 {[%clk 00:11:29]}
{[%emt 00:00:09]} Nxc5 {[%clk 00:11:26]} {[%emt 00:00:23]} 17. dxc5 {[%clk
00:10:40]} {[%emt 00:00:53]} Bxc3 {[%clk 00:11:25]} {[%emt 00:00:06]} 18. Bh6
{[%clk 00:09:32]} {[%emt 00:01:13]} Re8 {[%clk 00:10:12]} {[%emt 00:01:18]} 19.
Re2 {[%clk 00:05:08]} {[%emt 00:04:30]} Na5 {[%clk 00:09:01]} {[%emt 00:01:15]}
20. Rb1 {[%clk 00:04:05]} {[%emt 00:01:08]} Bg7 {[%clk 00:06:04]} {[%emt
00:03:03]} 21. Bxg7 {[%clk 00:03:45]} {[%emt 00:00:26]} Kxg7 {[%clk 00:06:08]}
22. Reb2 {[%clk 00:03:31]} {[%emt 00:00:19]} Nc4 {[%clk 00:05:08]} {[%emt
00:01:06]} 23. Rb7 {[%clk 00:01:57]} {[%emt 00:01:39]} Rc8 {[%clk 00:04:26]}
{[%emt 00:00:46]} 24. Be2 {[%clk 00:01:18]} {[%emt 00:00:44]} Ne5 {[%clk
00:02:13]} {[%emt 00:02:18]} 25. Bxa6 {[%clk 00:00:19]} {[%emt 00:01:04]} Qf6
{[%clk 00:02:13]} {[%emt 00:00:06]} 26. R7b5 {[%clk 00:00:07]} {[%emt
00:00:17]} Ra8 {[%clk 00:02:04]} {[%emt 00:00:14]} 27. Rb6 {[%clk 00:00:08]}
{[%emt 00:00:04]} Nd7 {[%clk 00:01:53]} {[%emt 00:00:15]} 28. Bb7 {[%clk
00:00:07]} {[%emt 00:00:06]} Nxb6 {[%clk 00:01:46]} {[%emt 00:00:12]} 29. Bxa8
{[%clk 00:00:11]} {[%emt 00:00:02]} Nxa8 {[%clk 00:01:49]} {[%emt 00:00:01]} 30.
c6 {[%clk 00:00:11]} {[%emt 00:00:05]} Rc8 {[%clk 00:01:46]} {[%emt 00:00:08]}
31. Qc1 {[%clk 00:00:06]} {[%emt 00:00:10]} e5 {[%clk 00:01:44]} {[%emt
00:00:07]} 32. Rb7 {[%clk 00:00:07]} {[%emt 00:00:04]} Qxc6 {[%clk 00:01:46]}
{[%emt 00:00:02]} 0-1

[Event "Snabbschacks-KM 2025"]
[Site "Linköping, Sweden"]
[Date "2025.05.20"]
[Round "9.4"]
[White "Thornqvist, Ofelia"]
[Black "Davidsson, Asker"]
[Result "1/2-1/2"]
[TimeControl "15 min + 5 sek"]
[WhiteElo "1881"]
[BlackElo "1796"]

1. d4 {[%clk 00:15:09]} d5 {[%clk 00:15:08]} {[%emt 00:00:02]} 2. Nc3 {[%clk
00:15:12]} {[%emt 00:00:02]} Nf6 {[%clk 00:15:07]} {[%emt 00:00:07]} 3. Bf4
{[%clk 00:15:16]} {[%emt 00:00:01]} c6 {[%clk 00:15:05]} {[%emt 00:00:07]} 4.
e3 {[%clk 00:15:18]} {[%emt 00:00:03]} Bf5 {[%clk 00:14:39]} {[%emt 00:00:31]}
5. f3 {[%clk 00:15:16]} {[%emt 00:00:07]} h6 {[%clk 00:14:36]} {[%emt
00:00:08]} 6. g4 {[%clk 00:15:16]} {[%emt 00:00:05]} Bh7 {[%clk 00:14:30]}
{[%emt 00:00:11]} 7. h4 {[%clk 00:15:03]} {[%emt 00:00:18]} e6 {[%clk
00:14:25]} {[%emt 00:00:09]} 8. Nh3 {[%clk 00:14:44]} {[%emt 00:00:24]} Bd6
{[%clk 00:14:17]} {[%emt 00:00:14]} 9. Bxd6 {[%clk 00:14:23]} {[%emt 00:00:25]}
Qxd6 {[%clk 00:14:20]} {[%emt 00:00:02]} 10. Kf2 {[%clk 00:13:59]} {[%emt
00:00:29]} c5 {[%clk 00:13:31]} {[%emt 00:00:55]} 11. Bd3 {[%clk 00:13:33]}
{[%emt 00:00:31]} cxd4 {[%clk 00:12:47]} {[%emt 00:00:49]} 12. exd4 {[%clk
00:13:31]} {[%emt 00:00:06]} Bxd3 {[%clk 00:12:34]} {[%emt 00:00:18]} 13. Qxd3
{[%clk 00:13:35]} {[%emt 00:00:01]} Qb6 {[%clk 00:11:48]} {[%emt 00:00:51]} 14.
Qb5+ {[%clk 00:13:20]} {[%emt 00:00:21]} Qxb5 {[%clk 00:10:53]} {[%emt
00:01:00]} 15. Nxb5 {[%clk 00:13:23]} {[%emt 00:00:01]} Kd7 {[%clk 00:10:57]}
{[%emt 00:00:01]} 16. g5 {[%clk 00:12:38]} {[%emt 00:00:50]} Ng8 {[%clk
00:09:24]} {[%emt 00:01:37]} 17. Rae1 {[%clk 00:12:29]} {[%emt 00:00:14]} Ne7
{[%clk 00:09:14]} {[%emt 00:00:15]} 18. Nf4 {[%clk 00:12:05]} {[%emt 00:00:29]}
Nbc6 {[%clk 00:08:50]} {[%emt 00:00:29]} 19. c3 {[%clk 00:11:49]} {[%emt
00:00:21]} a6 {[%clk 00:08:52]} {[%emt 00:00:04]} 20. Na3 {[%clk 00:11:53]}
{[%emt 00:00:01]} Rh7 {[%clk 00:08:00]} {[%emt 00:00:56]} 21. Nd3 {[%clk
00:10:55]} {[%emt 00:01:02]} Rah8 {[%clk 00:07:26]} {[%emt 00:00:40]} 22. Kg2
{[%clk 00:10:09]} {[%emt 00:00:51]} hxg5 {[%clk 00:05:56]} {[%emt 00:01:35]} 23.
hxg5 {[%clk 00:10:10]} {[%emt 00:00:03]} Rxh1 {[%clk 00:05:42]} {[%emt
00:00:19]} 24. Rxh1 {[%clk 00:10:13]} {[%emt 00:00:02]} Rxh1 {[%clk 00:05:46]}
{[%emt 00:00:01]} 25. Kxh1 {[%clk 00:10:17]} Nf5 {[%clk 00:05:26]} {[%emt
00:00:26]} 26. Nc2 {[%clk 00:10:09]} {[%emt 00:00:14]} Nce7 {[%clk 00:04:38]}
{[%emt 00:00:53]} 27. Ne5+ {[%clk 00:09:37]} {[%emt 00:00:37]} Ke8 {[%clk
00:04:32]} {[%emt 00:01:27]} 28. Kg2 {[%clk 00:10:32]} {[%emt 00:00:09]} f6
{[%clk 00:04:06]} {[%emt 00:00:31]} 29. gxf6 {[%clk 00:10:32]} {[%emt
00:00:05]} gxf6 {[%clk 00:04:10]} {[%emt 00:00:01]} 30. Ng4 {[%clk 00:10:08]}
{[%emt 00:00:28]} Kf7 {[%clk 00:04:14]} {[%emt 00:00:02]} 31. Kf2 {[%clk
00:09:30]} {[%emt 00:00:43]} Nc6 {[%clk 00:04:09]} {[%emt 00:00:10]} 32. Nge3
{[%clk 00:09:20]} {[%emt 00:00:15]} Nxe3 {[%clk 00:04:00]} {[%emt 00:00:14]} 33.
Nxe3 {[%clk 00:09:14]} {[%emt 00:00:11]} Ke7 {[%clk 00:03:55]} {[%emt
00:00:10]} 34. Ke2 {[%clk 00:08:36]} {[%emt 00:00:42]} Kd6 {[%clk 00:03:55]}
{[%emt 00:00:05]} 35. f4 {[%clk 00:07:41]} {[%emt 00:01:00]} f5 {[%clk
00:03:24]} {[%emt 00:00:36]} 36. Nc2 {[%clk 00:06:42]} {[%emt 00:01:04]} b5
{[%clk 00:02:55]} {[%emt 00:00:34]} 37. a3 {[%clk 00:05:54]} {[%emt 00:00:53]}
Na5 {[%clk 00:02:22]} {[%emt 00:00:38]} 38. Nb4 {[%clk 00:05:46]} {[%emt
00:00:13]} Nc4 {[%clk 00:02:20]} {[%emt 00:00:07]} 39. Nd3 {[%clk 00:05:40]}
{[%emt 00:00:11]} Kc6 {[%clk 00:01:38]} {[%emt 00:00:47]} 40. Kf3 {[%clk
00:05:10]} {[%emt 00:00:35]} Kd6 {[%clk 00:01:22]} {[%emt 00:00:21]} 41. Ke4
{[%emt 00:01:03]} Ke5+ 1/2-1/2

[Event "Snabbschacks-KM 2025"]
[Site "Linköping, Sweden"]
[Date "2025.05.20"]
[Round "9.5"]
[White "Andersson, Fredrik 1969"]
[Black "Stefanovic, Dragan 1958"]
[Result "0-1"]
[TimeControl "15 min + 5 sek"]
[WhiteElo "1754"]
[BlackElo "1780"]

1. d4 {[%clk 00:15:08]} {[%emt 00:00:01]} Nf6 {[%clk 00:15:09]} {[%emt
00:00:01]} 2. Nc3 {[%clk 00:15:12]} {[%emt 00:00:01]} d5 {[%clk 00:15:07]}
{[%emt 00:00:06]} 3. Bf4 {[%clk 00:15:15]} {[%emt 00:00:02]} e6 {[%clk
00:14:53]} {[%emt 00:00:19]} 4. Nb5 {[%clk 00:15:17]} {[%emt 00:00:03]} Na6
{[%clk 00:14:40]} {[%emt 00:00:18]} 5. e3 {[%clk 00:15:19]} {[%emt 00:00:03]}
c6 {[%clk 00:14:37]} {[%emt 00:00:08]} 6. Nc3 {[%clk 00:15:22]} {[%emt
00:00:02]} Bb4 {[%clk 00:14:33]} {[%emt 00:00:09]} 7. Bd3 {[%clk 00:14:33]}
{[%emt 00:00:55]} Ne4 {[%clk 00:13:18]} {[%emt 00:01:19]} 8. Nge2 {[%clk
00:14:08]} {[%emt 00:00:30]} g5 {[%clk 00:12:40]} {[%emt 00:00:43]} 9. Be5
{[%clk 00:13:25]} {[%emt 00:00:48]} f6 {[%clk 00:12:29]} {[%emt 00:00:16]} 10.
Bg3 {[%clk 00:13:26]} {[%emt 00:00:04]} h5 {[%clk 00:12:31]} {[%emt 00:00:04]}
11. Bxe4 {[%clk 00:13:01]} {[%emt 00:00:30]} dxe4 {[%clk 00:12:33]} {[%emt
00:00:02]} 12. h3 {[%clk 00:12:58]} {[%emt 00:00:08]} Nc7 {[%clk 00:12:29]}
{[%emt 00:00:10]} 13. a3 {[%clk 00:12:56]} {[%emt 00:00:06]} Bxc3+ {[%clk
00:11:39]} {[%emt 00:00:55]} 14. Nxc3 {[%clk 00:12:59]} {[%emt 00:00:02]} f5
{[%clk 00:11:40]} {[%emt 00:00:04]} 15. Be5 {[%clk 00:12:52]} {[%emt 00:00:12]}
Rh7 {[%clk 00:11:26]} {[%emt 00:00:19]} 16. Qe2 {[%clk 00:12:32]} {[%emt
00:00:25]} Nd5 {[%clk 00:11:01]} {[%emt 00:00:31]} 17. Nxd5 {[%clk 00:12:00]}
{[%emt 00:00:37]} Qxd5 {[%clk 00:11:02]} {[%emt 00:00:03]} 18. c4 {[%clk
00:08:30]} {[%emt 00:03:35]} Qa5+ {[%clk 00:10:43]} {[%emt 00:00:24]} 19. b4
{[%clk 00:08:32]} {[%emt 00:00:04]} Qa4 {[%clk 00:10:46]} {[%emt 00:00:02]} 20.
Kd2 {[%clk 00:07:35]} {[%emt 00:01:01]} a5 {[%clk 00:10:42]} {[%emt 00:00:10]}
21. Kc3 {[%clk 00:05:34]} {[%emt 00:02:05]} b5 {[%clk 00:07:43]} {[%emt
00:03:03]} 22. Rhb1 {[%clk 00:05:23]} {[%emt 00:00:16]} Ba6 {[%clk 00:05:34]}
{[%emt 00:02:14]} 23. c5 {[%clk 00:05:24]} {[%emt 00:00:04]} g4 {[%clk
00:05:02]} {[%emt 00:00:37]} 24. Qa2 {[%clk 00:04:37]} {[%emt 00:00:51]} Bc8
{[%clk 00:04:39]} {[%emt 00:00:28]} 25. hxg4 {[%clk 00:03:48]} {[%emt
00:00:54]} hxg4 {[%clk 00:04:40]} {[%emt 00:00:04]} 26. Rh1 {[%clk 00:03:52]}
{[%emt 00:00:01]} Rxh1 {[%clk 00:03:47]} {[%emt 00:00:58]} 27. Rxh1 {[%clk
00:03:55]} {[%emt 00:00:02]} axb4+ {[%clk 00:03:50]} {[%emt 00:00:01]} 28. Kb2
{[%clk 00:03:50]} {[%emt 00:00:10]} bxa3+ {[%clk 00:03:50]} {[%emt 00:00:05]}
29. Kb1 {[%clk 00:03:30]} {[%emt 00:00:26]} Qb4+ {[%clk 00:03:23]} {[%emt
00:00:32]} 30. Ka1 {[%clk 00:03:29]} {[%emt 00:00:05]} Qc3+ {[%clk 00:02:21]}
{[%emt 00:01:07]} 31. Kb1 {[%clk 00:03:30]} {[%emt 00:00:04]} Qd3+ {[%clk
00:02:25]} {[%emt 00:00:02]} 32. Ka1 {[%clk 00:03:24]} {[%emt 00:00:12]} Qc3+
{[%clk 00:02:14]} {[%emt 00:00:15]} 33. Kb1 {[%clk 00:03:27]} {[%emt 00:00:02]}
Ra4 {[%clk 00:02:09]} {[%emt 00:00:11]} 34. Rh8+ {[%clk 00:03:16]} {[%emt
00:00:16]} Kf7 {[%clk 00:02:12]} {[%emt 00:00:02]} 35. Rh7+ {[%clk 00:02:24]}
{[%emt 00:00:56]} Kg8 {[%clk 00:02:16]} {[%emt 00:00:01]} 36. Rg7+ {[%clk
00:02:27]} {[%emt 00:00:02]} Kf8 {[%clk 00:02:20]} 0-1

[Event "Snabbschacks-KM 2025"]
[Site "Linköping, Sweden"]
[Date "2025.05.20"]
[Round "9.6"]
[White "Leijon, Noah"]
[Black "Martinelle, Christoffer"]
[Result "0-1"]
[TimeControl "15 min + 5 sek"]
[WhiteElo "1621"]
[BlackElo "1806"]

1. e4 {[%clk 00:15:08]} {[%emt 00:00:01]} d5 {[%clk 00:15:08]} {[%emt
00:00:02]} 2. exd5 {[%clk 00:15:11]} {[%emt 00:00:02]} Qxd5 {[%clk 00:15:12]}
{[%emt 00:00:02]} 3. Nc3 {[%clk 00:15:14]} {[%emt 00:00:01]} Qa5 {[%clk
00:15:15]} {[%emt 00:00:02]} 4. d4 {[%clk 00:15:18]} {[%emt 00:00:02]} c6
{[%clk 00:15:13]} {[%emt 00:00:07]} 5. Nf3 {[%clk 00:15:15]} {[%emt 00:00:09]}
Nf6 {[%clk 00:15:15]} {[%emt 00:00:03]} 6. Bc4 {[%clk 00:15:05]} {[%emt
00:00:15]} Bf5 {[%clk 00:15:14]} {[%emt 00:00:05]} 7. Bd2 {[%clk 00:14:25]}
{[%emt 00:00:45]} e6 {[%clk 00:15:16]} {[%emt 00:00:03]} 8. Nh4 {[%clk
00:13:52]} {[%emt 00:00:39]} Bg6 {[%clk 00:14:59]} {[%emt 00:00:22]} 9. Nxg6
{[%clk 00:13:34]} {[%emt 00:00:23]} hxg6 {[%clk 00:15:01]} {[%emt 00:00:02]} 10.
Qf3 {[%clk 00:12:54]} {[%emt 00:00:45]} Bb4 {[%clk 00:14:47]} {[%emt 00:00:19]}
11. O-O-O {[%clk 00:12:20]} {[%emt 00:00:40]} Nbd7 {[%clk 00:14:22]} {[%emt
00:00:29]} 12. Kb1 {[%clk 00:11:28]} {[%emt 00:00:57]} O-O-O {[%clk 00:14:06]}
{[%emt 00:00:21]} 13. h3 {[%clk 00:10:51]} {[%emt 00:00:42]} Nb6 {[%clk
00:13:10]} {[%emt 00:01:01]} 14. Bb3 {[%clk 00:08:37]} {[%emt 00:02:19]} Rxd4
{[%clk 00:11:47]} {[%emt 00:01:28]} 15. Bg5 {[%clk 00:08:33]} {[%emt 00:00:09]}
Rxd1+ {[%clk 00:11:32]} {[%emt 00:00:20]} 16. Rxd1 {[%clk 00:08:34]} {[%emt
00:00:04]} Qxg5 {[%clk 00:11:22]} {[%emt 00:00:15]} 17. Ne2 {[%clk 00:07:45]}
{[%emt 00:00:54]} Nbd5 {[%clk 00:10:18]} {[%emt 00:01:09]} 18. a3 {[%clk
00:06:39]} {[%emt 00:01:11]} Be7 {[%clk 00:08:25]} {[%emt 00:01:57]} 19. Nd4
{[%clk 00:05:13]} {[%emt 00:01:32]} Qf4 {[%clk 00:07:56]} {[%emt 00:00:34]} 20.
Qe2 {[%clk 00:05:06]} {[%emt 00:00:12]} Qe4 {[%clk 00:07:28]} {[%emt 00:00:33]}
21. Qd2 {[%clk 00:04:14]} {[%emt 00:00:57]} Bc5 {[%clk 00:06:23]} {[%emt
00:01:10]} 22. Nf3 {[%clk 00:03:37]} {[%emt 00:00:42]} Qf4 {[%clk 00:05:28]}
{[%emt 00:01:00]} 23. Qa5 {[%clk 00:03:34]} {[%emt 00:00:09]} Bb6 {[%clk
00:05:22]} {[%emt 00:00:11]} 24. Qe1 {[%clk 00:03:18]} {[%emt 00:00:21]} Rd8
{[%clk 00:05:20]} {[%emt 00:00:07]} 25. Ne5 {[%clk 00:02:12]} {[%emt 00:01:12]}
Qe4 {[%clk 00:03:14]} {[%emt 00:02:11]} 26. Nxf7 {[%clk 00:02:14]} {[%emt
00:00:03]} Qxe1 {[%clk 00:03:18]} {[%emt 00:00:01]} 27. Rxe1 {[%clk 00:02:18]}
{[%emt 00:00:02]} Rd7 {[%clk 00:03:06]} {[%emt 00:00:16]} 28. Ne5 {[%clk
00:02:21]} {[%emt 00:00:02]} Re7 {[%clk 00:02:57]} {[%emt 00:00:14]} 29. Nxg6
{[%clk 00:02:24]} {[%emt 00:00:02]} Re8 {[%clk 00:03:01]} 30. f4 {[%clk
00:02:14]} {[%emt 00:00:17]} Bc7 {[%clk 00:02:32]} {[%emt 00:00:34]} 31. g3
{[%clk 00:01:57]} {[%emt 00:00:21]} Bb6 {[%clk 00:02:15]} {[%emt 00:00:22]} 32.
g4 {[%clk 00:01:07]} {[%emt 00:00:55]} Bc7 {[%clk 00:01:44]} {[%emt 00:00:36]}
33. Rf1 {[%clk 00:00:38]} {[%emt 00:00:34]} Ne4 {[%clk 00:01:20]} {[%emt
00:00:28]} 34. Kc1 {[%clk 00:00:36]} {[%emt 00:00:08]} Nc5 {[%clk 00:01:20]}
{[%emt 00:00:06]} 35. Bc4 {[%clk 00:00:36]} {[%emt 00:00:05]} b5 {[%clk
00:01:23]} {[%emt 00:00:02]} 36. Be2 {[%clk 00:00:33]} {[%emt 00:00:08]} Ne4
{[%clk 00:01:22]} {[%emt 00:00:05]} 37. g5 {[%clk 00:00:18]} {[%emt 00:00:20]}
Ng3 {[%clk 00:01:25]} {[%emt 00:00:02]} 38. Re1 {[%clk 00:00:19]} {[%emt
00:00:03]} Nxe2+ {[%clk 00:01:21]} {[%emt 00:00:10]} 39. Rxe2 {[%clk 00:00:23]}
{[%emt 00:00:01]} Nxf4 {[%clk 00:01:21]} {[%emt 00:00:04]} 40. Nxf4 {[%clk
00:00:11]} {[%emt 00:00:16]} Bxf4+ {[%clk 00:01:25]} {[%emt 00:00:02]} 0-1